bitfinex/quotes_ETHUSD_20241204
["timestamp","ask_amount","ask_price","bid_price","bid_amount"]
[1733282233862,0.25501757,3672.6,3672.3,0.55652751]
[1733282234092,1.17562917,3673.1,3672.3,0.55652751]
[1733282234093,0.25501757,3672.5,3672.3,0.88450226]
[1733282234298,2.31799449,3673.1,3672.3,0.88450226]
[1733282234469,0.2551219,3673.0,3672.3,0.55652751]
[1733282235165,1.17562917,3672.5,3672.3,0.55652751]
[1733282235502,0.2551219,3672.4,3672.3,0.55652751]
[1733282237199,1.17562917,3673.1,3672.3,0.55652751]
[1733282237404,0.1576002,3673.4,3672.4,2.72299]
[1733282237573,1.14237031,3673.2,3672.5,0.33067441]
[1733282237760,1.17562917,3673.2,3672.5,2.72292]
[1733282238310,1.17562917,3673.2,3672.3,0.55652751]
[1733282238475,1.17562917,3673.2,3672.5,2.72288]
[1733282238676,1.29997051,3673.4,3672.6,2.72285]
[1733282240420,1.29997051,3673.4,3673.1,0.5582214]
[1733282241192,0.1576002,3673.4,3673.1,0.5582214]
[1733282241385,1.29997051,3673.4,3673.1,0.5582214]
[1733282243335,0.1576002,3673.4,3673.1,0.5582214]
[1733282244630,0.1576002,3673.4,3673.1,0.88631354]
[1733282244832,1.29997051,3673.4,3673.1,0.88631354]
[1733282245033,0.1576002,3673.4,3673.1,0.88631354]
[1733282246930,0.1576002,3673.4,3673.2,2.72239]
[1733282247137,0.1576002,3673.4,3673.1,0.88631354]
[1733282247296,0.1576002,3673.4,3673.3,2.72234]
[1733282247640,0.1576002,3673.4,3673.3,3.08592732]
[1733282250531,0.01699856,3673.5,3673.3,3.35842732]
[1733282252856,0.01699856,3673.5,3673.4,2.72227]
[1733282253145,0.01699856,3673.5,3673.3,0.36358732]
[1733282253358,0.01699856,3673.5,3673.4,0.15224009]
[1733282253551,1.14237031,3674.5,3673.4,0.02721805]
[1733282253722,3.10629948,3674.9,3673.4,0.02721805]
[1733282253923,1.96392917,3674.9,3673.7,2.72203]
[1733282254342,1.96392917,3674.9,3673.7,2.7492447]
[1733282254661,1.96392917,3674.9,3673.8,2.72197]
[1733282254851,1.96392917,3674.9,3673.8,3.02413847]
[1733282255060,0.7883,3674.9,3673.8,3.02413847]
[1733282255266,1.96392917,3674.9,3673.9,0.0272147]
[1733282255755,0.7883,3674.9,3673.9,2.7490947]
[1733282255918,1.96392917,3674.9,3673.9,2.72188]
[1733282256119,1.96392917,3674.9,3673.9,3.02428485]
[1733282256753,1.96392917,3674.9,3674.0,2.72182]
[1733282256921,1.95382917,3675.2,3674.1,0.02721268]
[1733282257242,1.95382917,3675.2,3674.1,2.74893268]
[1733282257814,1.95382917,3675.2,3674.1,2.72172]
[1733282258014,2.42129409,3675.2,3674.1,2.72172]
[1733282258259,1.17562917,3675.0,3674.1,2.72172]
[1733282259045,1.17562917,3675.0,3674.9,0.5520209]
[1733282260622,1.95382917,3675.2,3674.9,0.5520209]
[1733282260921,1.17562917,3675.0,3674.9,0.5520209]
[1733282261156,1.95382917,3675.2,3674.9,0.5520209]
[1733282261355,0.19538292,3675.1,3674.9,0.5520209]
[1733282261965,1.17562917,3675.4,3674.9,0.5520209]
[1733282264262,1.17562917,3675.2,3674.9,0.5520209]
[1733282264821,0.28216812,3675.8,3674.9,0.5520209]
[1733282265024,1.17562917,3675.3,3674.9,0.5520209]
[1733282268460,2.72074,3675.5,3674.9,0.5520209]
[1733282268461,1.17562917,3675.0,3674.9,0.5520209]
[1733282269141,1.17562917,3675.3,3674.9,0.5520209]
[1733282269742,0.38964292,3675.2,3674.9,0.5520209]
[1733282270966,1.17562917,3675.3,3674.9,0.5520209]
[1733282271743,0.7861,3675.2,3674.9,0.5520209]
[1733282275031,2.72108,3675.0,3674.9,0.5520209]
[1733282275933,3.49968,3675.0,3674.9,0.5520209]
[1733282276132,4.23930092,3675.0,3674.9,0.5520209]
[1733282280386,2.72169,3674.2,3672.9,2.72263]
[1733282280541,1.94642917,3674.1,3672.9,2.72263]
[1733282280746,1.94642917,3674.1,3673.0,0.2725]
[1733282280942,1.94642917,3674.1,3673.0,2.99506]
[1733282281285,1.94642917,3674.1,3673.1,0.299506]
[1733282281848,1.94642917,3674.1,3674.0,0.55442663]
[1733282283145,4.66817917,3674.1,3674.0,0.55442663]
[1733282284382,2.72198,3673.8,3672.6,0.2725]
[1733282284545,1.17562917,3673.6,3672.6,0.2725]
[1733282284953,1.17562917,3673.6,3672.8,0.2725]
[1733282285754,1.92792917,3673.6,3672.8,0.2725]
[1733282286997,1.92792917,3673.6,3673.5,0.54620039]
[1733282290600,1.14237031,3674.5,3673.5,0.54620039]
[1733282290786,1.6978231,3674.4,3673.5,0.54620039]
[1733282290988,1.17562917,3674.4,3673.5,0.57341641]
[1733282291186,1.17562917,3674.4,3673.5,0.54620039]
[1733282291590,1.17562917,3674.1,3673.5,0.54620039]
[1733282292171,1.17562917,3673.8,3673.5,0.54620039]
[1733282294238,0.8048,3673.7,3673.5,0.54620039]
[1733282296972,1.27502492,3673.7,3673.5,0.54620039]
[1733282297188,3.52432,3673.6,3673.5,0.54620039]
[1733282299697,0.7822,3673.3,3671.8,0.2725]
[1733282299903,2.72228,3673.4,3671.8,0.2725]
[1733282299904,1.17562917,3672.6,3671.8,0.2725]
[1733282300078,1.17562917,3672.3,3671.6,6.8375]
[1733282300281,1.17562917,3672.3,3671.7,0.956118]
[1733282301276,1.17562917,3672.3,3671.6,6.8375]
[1733282301472,0.7595,3672.2,3671.6,6.8375]
[1733282302611,0.7595,3672.2,3672.1,0.55573416]
[1733282303123,3.40775033,3672.5,3672.1,0.55573416]
[1733282303733,6.13070033,3672.5,3672.1,0.55573416]
[1733282304021,6.74377036,3672.5,3672.1,0.55573416]
[1733282304316,3.40595033,3672.9,3672.1,0.55573416]
[1733282304490,2.60565033,3672.9,3672.1,0.55573416]
[1733282304686,2.60565033,3672.9,3672.3,2.72308]
[1733282305211,2.60565033,3672.9,3672.1,0.55573416]
[1733282306671,3.21849436,3672.9,3672.1,0.55573416]
[1733282306895,5.94119436,3672.9,3672.1,0.55573416]
[1733282307214,2.72273,3672.8,3672.1,0.55573416]
[1733282307433,2.72283,3672.7,3671.6,6.8375]
[1733282307641,2.72287,3672.6,3671.6,6.8375]
[1733282307796,2.60565033,3672.5,3671.6,6.8375]
[1733282308205,5.32860033,3672.5,3671.6,6.8375]
[1733282309333,2.60565033,3672.5,3671.6,6.8375]
[1733282309628,5.32862033,3672.5,3671.6,6.8375]
[1733282310194,0.8002,3672.8,3672.4,0.55764451]
[1733282310395,2.60565033,3672.9,3672.4,0.55764451]
[1733282311221,3.36815033,3672.5,3672.4,0.55764451]
[1733282311437,6.09109033,3672.5,3672.4,0.55764451]
[1733282311596,3.36815033,3672.5,3672.4,0.55764451]
[1733282311793,2.60565033,3672.5,3671.7,2.7235]
[1733282312029,2.60565033,3672.5,3671.8,0.9561]
[1733282312625,2.60565033,3672.5,3671.6,6.8375]
[1733282314207,2.60565033,3672.5,3672.3,0.55164331]
[1733282315459,0.8139,3672.4,3672.3,0.55164331]
[1733282315745,5.32859033,3672.5,3672.3,0.55164331]
[1733282315746,2.60565033,3672.5,3672.3,0.55164331]
[1733282316140,3.5367,3672.7,3672.3,0.55164331]
[1733282316447,0.8139,3672.7,3671.7,2.72351]
[1733282316612,0.8139,3672.7,3671.8,0.956101]
[1733282318150,0.8139,3672.7,3671.9,0.02723223]
[1733282318322,0.8139,3672.7,3671.8,3.679551]
[1733282318564,0.8139,3672.7,3672.4,0.5527801]
[1733282319047,0.28376469,3672.6,3672.4,0.5527801]
[1733282321535,1.17567405,3672.5,3672.4,0.5527801]
[1733282321856,1.94117405,3672.5,3672.4,0.5527801]
[1733282324133,1.94117405,3672.5,3672.4,0.5527801]
[1733282328766,1.94117405,3672.5,3671.6,9.56109]
[1733282329062,1.17567405,3672.2,3671.6,9.56109]
[1733282329547,1.17378899,3672.2,3671.6,9.56109]
[1733282329748,1.17378899,3672.2,3671.7,0.956109]
[1733282330684,1.17567405,3671.9,3671.6,6.8375]
[1733282333257,1.17567405,3671.9,3671.8,0.54903755]
[1733282339351,1.17378199,3671.9,3671.8,0.54903755]
[1733282340086,0.28392347,3672.0,3671.8,0.54903755]
[1733282340294,1.45959752,3672.0,3671.8,1.56004931]
[1733282340461,0.28392347,3672.0,3671.8,1.56004931]
[1733282340804,1.17567405,3671.9,3671.8,1.56004931]
[1733282341345,1.17567405,3671.9,3671.8,4.28349931]
[1733282341559,1.17567405,3671.9,3671.8,1.56004931]
[1733282342650,1.17567405,3671.9,3671.8,0.54903755]
[1733282343749,1.97247405,3671.9,3671.8,0.54903755]
[1733282346689,3.11484436,3671.9,3671.8,0.54903755]
[1733282346895,4.29051841,3671.9,3671.8,0.54903755]
[1733282347105,5.83822436,3671.9,3671.8,0.54903755]
[1733282347397,5.83784987,3671.9,3671.8,0.54903755]
[1733282347760,4.69585405,3671.9,3671.8,0.54903755]
[1733282347958,5.83625165,3671.9,3671.8,0.54903755]
[1733282348165,7.0119257,3671.9,3671.8,0.54903755]
[1733282348366,2.72349,3671.8,3671.6,6.8375]
[1733282348650,3.51028401,3671.7,3671.6,6.8375]
[1733282348893,3.51028401,3671.7,3671.6,7.38969404]
[1733282349258,3.51028401,3671.7,3671.6,6.8375]
[1733282349465,4.65210197,3671.7,3671.6,6.8375]
[1733282349987,5.82777602,3671.7,3671.6,6.8375]
[1733282350296,4.68595806,3671.7,3671.6,6.8375]
[1733282350590,6.39951353,3671.7,3671.6,6.8375]
[1733282350960,7.17801353,3671.7,3671.6,6.8375]
[1733282351593,7.74919869,3671.7,3671.6,6.8375]
[1733282352167,7.35226674,3671.7,3671.6,6.8375]
[1733282352427,1.17567405,3670.1,3669.6,0.2724]
[1733282352599,1.17567405,3669.9,3669.6,0.2724]
[1733282353372,0.28379626,3670.1,3669.7,0.2724]
[1733282353573,0.28379626,3670.1,3669.7,2.99738]
[1733282354859,0.28379626,3670.1,3669.8,0.830746]
[1733282355059,0.28379626,3670.1,3669.8,0.558346]
[1733282355492,0.28379626,3670.1,3669.9,2.72486]
[1733282355695,0.28379626,3670.1,3670.0,0.3283206]
[1733282355895,0.28379626,3670.1,3669.8,0.558346]
[1733282355896,0.28188951,3670.1,3669.8,0.558346]
[1733282356502,0.28188951,3670.1,3669.8,6.612546]
[1733282360200,0.7824,3670.0,3669.8,6.612546]
[1733282360405,0.7824,3670.0,3669.8,6.0542]
[1733282364742,0.28188951,3670.1,3669.8,6.0542]
[1733282364966,0.28188951,3670.1,3669.9,0.65983375]
[1733282365309,0.28188951,3670.1,3669.9,3.38469375]
[1733282365848,0.28188951,3670.1,3670.0,2.72479]
[1733282366936,0.28188951,3670.1,3669.9,0.65983375]
[1733282368014,0.28188951,3670.1,3669.9,3.38469375]
[1733282368338,0.28188951,3670.1,3670.0,3.66867938]
[1733282368529,0.28188951,3670.1,3670.0,0.94388938]
[1733282370055,0.28188951,3670.1,3669.8,8.77913]
[1733282370552,0.28188951,3670.1,3669.9,2.72485]
[1733282371358,0.28188951,3670.1,3669.8,6.0542]
[1733282377902,0.8324,3670.0,3669.8,6.0542]
[1733282381001,0.28188951,3670.1,3669.8,6.0542]
[1733282382107,0.8103,3670.0,3669.8,6.0542]
[1733282385335,1.18034127,3670.0,3669.8,6.0542]
[1733282385997,3.50616,3669.9,3669.8,6.0542]
[1733282392906,12.07160724,3669.9,3669.8,6.0542]
[1733282394946,13.21275852,3669.9,3669.8,6.0542]
[1733282398905,12.07160724,3669.9,3669.8,6.0542]
[1733282399116,12.96338082,3669.9,3669.8,6.0542]
[1733282399535,14.67510775,3669.9,3669.8,6.0542]
[1733282399936,14.8507483,3669.9,3669.8,6.0542]
[1733282400313,14.6752655,3669.9,3669.8,6.0542]
[1733282400654,17.28348867,3669.9,3669.8,6.0542]
[1733282401238,14.67983041,3669.9,3669.8,6.0542]
[1733282401624,13.24929996,3669.9,3669.8,6.0542]
[1733282402052,15.56816157,3669.9,3669.8,6.0542]
[1733282402231,17.42699268,3669.9,3669.8,6.0542]
[1733282402435,19.13887736,3669.9,3669.8,6.0542]
[1733282403064,19.31441141,3669.9,3669.8,6.0542]
[1733282403250,0.8303,3669.1,3667.8,2.72642]
[1733282403463,1.17769272,3668.6,3667.8,2.72642]
[1733282403962,1.17769272,3668.6,3668.5,0.55329908]
[1733282405629,2.61069709,3669.0,3668.5,0.55329908]
[1733282410089,2.61069709,3669.0,3667.9,2.18656608]
[1733282410319,3.55577,3669.1,3668.0,0.21865661]
[1733282411186,2.72556,3669.0,3668.0,0.21865661]
[1733282411391,2.72563,3668.9,3667.7,2.7265]
[1733282411710,2.72563,3668.9,3667.8,2.7264]
[1733282412111,2.72563,3668.9,3668.6,0.5335785]
[1733282413236,2.72563,3668.9,3667.5,2.72664]
[1733282413441,2.72569,3668.8,3667.5,2.72664]
[1733282413601,2.72569,3668.8,3667.6,0.56097371]
[1733282413804,2.72555,3669.0,3668.4,0.53630668]
[1733282414510,2.72562,3668.9,3668.4,0.53630668]
[1733282415643,2.72546,3669.1,3668.4,0.53630668]
[1733282415792,3.75188584,3669.3,3668.4,0.53630668]
[1733282415993,3.86634875,3669.5,3668.4,0.53630668]
[1733282416231,2.72524,3669.4,3668.5,0.32624367]
[1733282416436,2.72539,3669.2,3668.5,0.32624367]
[1733282416593,2.72539,3669.2,3668.4,0.53630668]
[1733282416931,2.72539,3669.2,3668.0,2.72627]
[1733282417135,2.72531,3669.4,3668.0,2.72621]
[1733282417431,2.72531,3669.4,3669.0,0.55141632]
[1733282418332,2.72533,3669.3,3669.0,0.55141632]
[1733282418719,2.72542,3669.2,3669.0,0.55141632]
[1733282419334,2.72546,3669.1,3669.0,0.55141632]
[1733282420140,3.45456158,3669.3,3669.0,0.55141632]
[1733282420514,2.72541,3669.2,3669.0,0.55141632]
[1733282421744,2.72546,3669.1,3669.0,0.55141632]
[1733282422303,4.59575033,3669.3,3669.0,0.55141632]
[1733282423536,1.14118875,3669.5,3669.0,0.55141632]
[1733282423741,2.72509,3669.6,3669.0,0.55141632]
[1733282425106,1.14118875,3669.8,3669.0,0.55141632]
[1733282425436,2.72533,3669.3,3669.0,0.55141632]
[1733282426101,0.7627,3669.4,3669.0,0.55141632]
[1733282426314,3.48794,3669.4,3669.0,0.55141632]
[1733282426929,2.72524,3669.4,3669.0,0.55141632]
[1733282427732,1.17778714,3669.4,3669.0,0.55141632]
[1733282428512,2.7254,3669.2,3669.0,0.55141632]
[1733282430554,1.14118875,3669.3,3669.0,0.55141632]
[1733282430729,5.79898479,3669.4,3669.0,0.55141632]
[1733282430934,2.50348312,3669.6,3669.0,0.55141632]
[1733282430935,1.14118875,3669.5,3669.0,0.55141632]
[1733282431249,1.14118875,3669.8,3669.0,3.30419998]
[1733282431440,1.14118875,3669.9,3669.2,2.72538]
[1733282431632,1.14118875,3670.1,3669.2,2.72538]
[1733282431835,1.14118875,3670.2,3669.3,3.08295483]
[1733282432033,2.31897589,3670.3,3669.3,3.05570465]
[1733282432246,2.31897589,3670.3,3669.3,0.33040465]
[1733282432431,5.04356589,3670.3,3669.1,2.72546]
[1733282432755,1.14118875,3670.2,3669.1,2.72546]
[1733282433272,2.31897589,3670.3,3669.1,2.72544]
[1733282433565,1.14118875,3670.3,3669.1,2.72544]
[1733282433720,1.14118875,3670.3,3670.0,0.53306421]
[1733282434771,1.78213494,3670.3,3670.0,0.53306421]
[1733282435474,1.78213494,3670.3,3669.1,2.72544]
[1733282435683,1.14118875,3670.3,3668.9,2.72556]
[1733282436170,1.14118875,3670.3,3668.5,2.60857602]
[1733282436171,2.72471,3670.2,3669.0,2.72552]
[1733282436336,2.72474,3670.1,3669.0,2.72552]
[1733282436666,2.72474,3670.1,3668.5,2.96397972]
[1733282436864,2.72474,3670.1,3669.8,0.53448251]
[1733282437444,2.72502,3669.7,3668.6,0.56898897]
[1733282437644,3.51482,3669.7,3668.5,2.7259]
[1733282437848,2.72522,3669.5,3668.2,2.72612]
[1733282438058,2.72522,3669.5,3668.3,0.272612]
[1733282438260,2.72522,3669.5,3669.2,0.53606447]
[1733282438578,2.72511,3669.6,3669.2,0.53606447]
[1733282440041,0.7898,3669.7,3669.2,0.53606447]
[1733282440554,0.8194,3669.2,3667.7,0.2724]
[1733282440770,0.8194,3669.2,3667.8,0.35599037]
[1733282440951,1.14118875,3669.5,3668.1,2.60857602]
[1733282441280,1.14118875,3669.9,3668.5,0.54609369]
[1733282441438,1.14118875,3670.0,3668.6,0.02725212]
[1733282441638,1.14118875,3670.3,3668.7,0.31819218]
[1733282442257,3.86575875,3670.3,3668.9,2.72561]
[1733282442847,2.72457,3670.3,3668.9,2.72561]
[1733282443238,2.72457,3670.3,3668.9,2.75286008]
[1733282443441,1.14118875,3670.4,3668.9,0.02725008]
[1733282443681,1.14118875,3670.5,3668.9,0.36179431]
[1733282443893,2.72451,3670.4,3669.0,2.72552]
[1733282444079,2.72451,3670.4,3670.2,0.53769393]
[1733282445477,2.72457,3670.3,3670.2,0.53769393]
[1733282445683,3.37200348,3670.3,3670.2,0.53769393]
[1733282447161,0.64743348,3670.3,3670.2,0.53769393]
[1733282448578,3.37200348,3670.3,3670.2,0.53769393]
[1733282448787,4.18990348,3670.3,3670.2,0.53769393]
[1733282453495,0.64743348,3670.3,3670.2,0.53769393]
[1733282453667,2.72449,3670.4,3670.2,0.53769393]
[1733282453993,3.43757602,3670.6,3669.1,2.75269884]
[1733282454181,6.16192602,3670.6,3669.1,2.75269884]
[1733282454555,0.829,3670.6,3669.1,0.02724884]
[1733282454796,0.829,3670.6,3669.4,2.72523]
[1733282455089,4.65731875,3670.9,3669.5,3.0248804]
[1733282455293,1.14118875,3671.0,3669.6,2.72506]
[1733282455603,2.72406,3671.0,3669.7,0.02724613]
[1733282455752,1.71178312,3671.3,3669.7,0.02724613]
[1733282455753,1.14118875,3671.3,3670.0,0.55667673]
[1733282455959,9.65624824,3672.0,3670.4,2.60857602]
[1733282455960,2.23198975,3672.0,3670.4,2.60857602]
[1733282456158,1.090801,3672.0,3670.6,2.72435]
[1733282456460,3.86442875,3672.1,3670.5,0.56055228]
[1733282456461,2.72324,3672.1,3670.8,2.72419]
[1733282456691,0.7688,3672.2,3670.7,0.02723667]
[1733282456692,0.7688,3672.2,3670.9,2.7241]
[1733282456994,2.72311,3672.3,3671.0,2.72404]
[1733282457975,2.72318,3672.2,3670.7,2.72422]
[1733282458204,0.7724,3672.5,3671.6,0.53980355]
[1733282458376,2.72348,3671.8,3670.8,0.62575356]
[1733282458984,2.72348,3671.8,3671.5,0.55289234]
[1733282459393,0.7724,3672.5,3671.5,0.55289234]
[1733282459712,2.72323,3672.1,3671.5,0.55289234]
[1733282459912,2.72358,3671.7,3670.8,0.62575356]
[1733282460081,2.72363,3671.6,3671.3,0.54514814]
[1733282460282,0.7724,3671.8,3670.0,5.33336602]
[1733282460576,2.72398,3671.1,3669.9,0.2724]
[1733282460780,0.7724,3671.8,3670.8,0.5450936]
[1733282461169,2.72361,3671.6,3670.8,0.5450936]
[1733282462091,0.7724,3671.8,3670.8,0.5450936]
[1733282462297,2.72369,3671.5,3670.8,0.5450936]
[1733282464500,2.72353,3671.7,3670.8,0.5450936]
[1733282466828,0.7724,3671.8,3670.8,0.5450936]
[1733282466992,1.12197,3671.8,3670.8,0.5450936]
[1733282467335,2.72391,3671.2,3670.8,0.5450936]
[1733282467782,0.7724,3671.8,3670.0,2.60857602]
[1733282467986,0.7985,3671.1,3669.6,2.60857602]
[1733282468223,3.52247,3671.1,3671.0,0.535632]
[1733282472223,6.13104602,3671.1,3671.0,0.535632]
[1733282472418,2.72431,3670.7,3669.2,3.0]
[1733282472601,2.72431,3670.7,3668.9,3.0]
[1733282472602,2.72431,3670.7,3669.3,2.7253]
[1733282473490,4.29257262,3671.1,3668.9,3.0]
[1733282473702,2.72422,3670.8,3669.3,2.72527]
[1733282474025,2.72405,3671.0,3669.3,2.72527]
[1733282474194,2.72421,3670.8,3669.3,2.72527]
[1733282474591,2.72421,3670.8,3669.3,3.0]
[1733282475388,3.40707602,3671.1,3669.4,0.572532]
[1733282475690,2.72419,3670.9,3670.6,0.55396797]
[1733282475893,2.72391,3671.2,3670.6,0.55396797]
[1733282476115,8.56544724,3671.4,3670.7,0.02724236]
[1733282476421,8.56544724,3671.4,3670.6,0.55396797]
[1733282476612,2.72383,3671.3,3670.6,0.55396797]
[1733282477004,0.7859,3671.3,3670.6,0.55396797]
[1733282477194,2.72427,3670.7,3669.3,5.72531]
[1733282477522,2.72438,3670.6,3670.5,0.54984878]
[1733282477691,0.7859,3671.3,3669.3,3.0]
[1733282477891,2.72442,3670.5,3669.3,3.0]
[1733282478093,2.72442,3670.5,3669.4,0.8334026]
[1733282478431,0.7859,3670.7,3669.4,0.8334026]
[1733282478888,3.51021,3670.7,3669.4,0.8334026]
[1733282479094,2.72431,3670.7,3669.4,3.0]
[1733282479926,2.72431,3670.7,3670.2,0.54264981]
[1733282480129,3.5426,3671.0,3670.2,0.54264981]
[1733282480317,3.5426,3671.0,3668.9,0.35492605]
[1733282480318,0.8185,3671.0,3668.9,0.35492605]
[1733282480518,2.72464,3670.2,3669.1,0.2724]
[1733282480720,0.7575,3670.4,3669.2,0.599797]
[1733282480895,2.72449,3670.4,3669.2,0.599797]
[1733282481096,0.7575,3670.7,3669.2,0.599797]
[1733282481295,2.72457,3670.3,3669.2,0.599797]
[1733282481495,2.72457,3670.3,3670.0,0.53474185]
[1733282482229,0.7575,3670.7,3670.0,0.53474185]
[1733282482531,2.72468,3670.2,3668.9,3.0]
[1733282482738,2.72468,3670.2,3669.0,0.572568]
[1733282483136,2.72468,3670.2,3669.1,0.02724894]
[1733282483431,0.7575,3670.7,3669.9,0.53730512]
[1733282483599,2.72465,3670.2,3669.9,0.53730512]
[1733282483798,2.72435,3670.6,3669.9,0.53730512]
[1733282484003,2.72472,3670.2,3669.9,0.53730512]
[1733282484197,2.72479,3670.0,3669.0,0.572568]
[1733282484932,0.792,3670.1,3669.7,0.53752296]
[1733282485131,3.51672,3670.1,3669.7,0.53752296]
[1733282485508,0.792,3670.1,3669.7,0.53752296]
[1733282485712,2.7248,3670.0,3669.7,0.53752296]
[1733282485918,0.792,3670.1,3669.7,0.53752296]
[1733282486233,2.72494,3669.8,3669.7,0.53752296]
[1733282486600,2.72503,3669.7,3668.3,5.72605]
[1733282486938,2.72479,3670.0,3668.3,3.0]
[1733282487096,2.72517,3669.5,3668.3,3.0]
[1733282488818,2.72517,3669.5,3669.2,0.55443135]
[1733282489229,1.143655,3670.1,3669.2,0.55443135]
[1733282489414,2.72525,3669.4,3668.1,3.0]
[1733282490256,0.8056,3669.7,3667.8,2.60857602]
[1733282490565,2.725,3669.8,3669.0,0.55481149]
[1733282491060,2.72509,3669.6,3669.0,0.55481149]
[1733282491219,2.72517,3669.5,3669.0,0.55481149]
[1733282491420,2.72511,3669.6,3669.0,0.55481149]
[1733282491658,2.7251,3669.6,3669.0,0.55481149]
[1733282491825,2.60857602,3669.9,3669.0,0.55481149]
[1733282491826,2.72516,3669.5,3669.0,0.55481149]
[1733282492435,2.72503,3669.7,3669.0,0.55481149]
[1733282492751,2.72488,3669.9,3669.0,0.55481149]
[1733282493127,2.72488,3669.9,3669.0,0.88286264]
[1733282493452,0.8056,3670.0,3669.0,0.88286264]
[1733282493623,2.7248,3670.0,3669.0,0.88286264]
[1733282493824,3.43197602,3670.3,3669.0,0.55481149]
[1733282494019,2.72497,3669.8,3669.0,0.55481149]
[1733282494953,2.7248,3670.0,3669.0,0.55481149]
[1733282495779,3.43197602,3670.3,3669.0,0.55481149]
[1733282495780,2.72489,3669.9,3669.0,0.55481149]
[1733282495954,2.72489,3669.9,3668.8,3.0]
[1733282496135,2.72489,3669.9,3668.9,0.572576]
[1733282497048,2.72472,3670.1,3668.9,0.572576]
[1733282497237,2.7248,3670.0,3668.9,0.572576]
[1733282497667,2.7248,3670.0,3669.8,0.55153867]
[1733282497875,0.8234,3670.3,3669.8,0.55153867]
[1733282498076,2.7248,3670.0,3669.8,0.55153867]
[1733282498744,2.72486,3669.9,3669.8,0.55153867]
[1733282499375,2.72472,3670.1,3668.9,2.75284081]
[1733282499583,2.72457,3670.3,3669.5,0.54630202]
[1733282500266,5.33299602,3670.5,3669.5,0.54630202]
[1733282500437,6.0634645,3670.5,3669.5,0.54630202]
[1733282500642,2.72451,3670.4,3669.5,0.54630202]
[1733282501065,2.72457,3670.3,3669.5,0.54630202]
[1733282501440,3.3390445,3670.5,3669.5,0.54630202]
[1733282501962,2.7246,3670.3,3669.5,0.54630202]
[1733282502171,6.0634745,3670.5,3669.2,2.72537]
[1733282502338,3.3390445,3670.5,3670.2,0.53686515]
[1733282502543,2.7245,3670.4,3670.2,0.53686515]
[1733282503651,2.72457,3670.3,3670.2,0.53686515]
[1733282506459,0.7983,3670.3,3668.6,0.2724]
[1733282506657,2.60857602,3670.0,3668.6,0.2724]
[1733282506898,2.60857602,3670.0,3668.8,0.2724]
[1733282507062,2.72486,3669.9,3668.8,0.2724]
[1733282507968,2.72495,3669.8,3668.7,0.299825]
[1733282508880,2.72495,3669.8,3669.4,0.55160151]
[1733282509084,2.72503,3669.7,3669.4,0.55160151]
[1733282510292,1.29214637,3669.7,3668.2,0.2724]
[1733282510494,2.72538,3669.3,3668.2,0.2724]
[1733282510696,2.72538,3669.3,3668.2,3.2724]
[1733282510900,5.15835512,3669.7,3668.2,0.2724]
[1733282511101,3.29558984,3669.6,3667.9,2.72634]
[1733282511313,2.72546,3669.1,3668.0,0.2724]
[1733282512184,2.72546,3669.1,3668.0,3.2724]
[1733282512692,0.7952,3669.2,3667.5,0.2724]
[1733282512863,0.7952,3669.2,3667.4,5.33524602]
[1733282512864,2.72555,3669.0,3667.9,0.2724]
[1733282513063,2.72555,3669.0,3668.1,0.2724]
[1733282513300,3.52059,3669.2,3668.1,0.2724]
[1733282514278,2.72546,3669.1,3668.0,0.299881]
[1733282514674,2.72546,3669.1,3668.8,0.54339762]
[1733282514990,0.7952,3669.2,3668.8,0.54339762]
[1733282515300,0.46616588,3669.1,3667.8,0.2724]
[1733282515599,2.72561,3668.9,3667.7,2.538803]
[1733282515808,1.14118875,3669.4,3667.8,0.02725884]
[1733282515993,2.72525,3669.4,3668.6,0.54350671]
[1733282516506,3.37997602,3669.6,3668.6,0.54350671]
[1733282516802,4.52116477,3669.6,3667.9,2.99873]
[1733282517467,2.72539,3669.2,3667.9,2.99873]
[1733282517882,2.72548,3669.1,3667.9,2.99873]
[1733282518078,2.72571,3668.8,3667.9,0.2724]
[1733282518320,2.72577,3668.7,3667.9,0.2724]
[1733282518692,5.33395602,3669.2,3667.9,0.2724]
[1733282518894,0.72308448,3669.1,3668.0,0.02726005]
[1733282519184,3.44854448,3669.1,3668.0,0.02726005]
[1733282519377,3.44854448,3669.1,3667.9,0.2724]
[1733282519378,2.72546,3669.1,3667.9,0.2724]
[1733282519577,0.7557,3669.4,3667.5,0.02725843]
[1733282519578,0.7557,3669.4,3668.6,0.53646493]
[1733282519826,2.60857602,3669.6,3668.6,0.53646493]
[1733282520319,2.72531,3669.4,3668.6,0.53646493]
[1733282520786,2.60857602,3669.6,3668.6,0.53646493]
[1733282520983,0.7658,3669.7,3668.6,0.53646493]
[1733282521385,0.7658,3669.7,3668.1,2.99853]
[1733282521386,2.72518,3669.5,3668.2,2.72613]
[1733282521934,2.72518,3669.5,3669.3,0.55850621]
[1733282522135,2.72509,3669.6,3669.3,0.55850621]
[1733282522299,1.14118875,3669.8,3669.3,0.55850621]
[1733282522502,0.62468479,3669.7,3669.3,0.55850621]
[1733282522682,3.34970479,3669.7,3669.3,0.55850621]
[1733282523085,1.76587354,3669.7,3669.3,0.55850621]
[1733282523321,2.72523,3669.5,3669.3,0.55850621]
[1733282523685,2.72524,3669.4,3669.3,0.55850621]
[1733282527093,1.48895442,3669.6,3668.1,3.0]
[1733282527286,0.7587,3669.5,3669.1,0.55598446]
[1733282527486,2.72534,3669.3,3669.1,0.55598446]
[1733282528311,2.72538,3669.2,3669.1,0.55598446]
[1733282528517,2.72538,3669.2,3667.9,2.99874]
[1733282528719,1.14118875,3669.4,3667.9,2.99874]
[1733282528921,2.72554,3669.0,3668.0,0.299874]
[1733282529999,2.72554,3669.0,3668.0,0.32713092]
[1733282530325,1.77831881,3669.3,3668.0,3.05340092]
[1733282530326,2.72539,3669.2,3668.0,3.05340092]
[1733282530626,2.72547,3669.1,3668.9,0.54895927]
[1733282531986,1.77831881,3669.3,3668.9,0.54895927]
[1733282531987,3.36244006,3669.3,3668.9,0.54895927]
[1733282532215,2.72531,3669.3,3668.9,0.54895927]
[1733282533323,0.7527,3669.4,3668.9,0.54895927]
[1733282533492,2.72553,3669.0,3668.9,0.54895927]
[1733282534408,3.74976477,3669.2,3667.8,0.29965833]
[1733282534409,1.14118875,3669.1,3667.8,0.2724]
[1733282534696,2.72578,3668.7,3667.7,0.2724]